bitfinex-derivatives/quotes_ETHF0:USTF0_20250103
["timestamp","ask_amount","ask_price","bid_price","bid_amount"]
[1735921780358,3.00626142,3584.7,3584.0,0.27922]
[1735921780563,3.00626142,3584.7,3583.4,3.2078]
[1735921780864,3.00626142,3584.7,3583.7,0.27924]
[1735921780865,0.27921,3584.2,3583.7,0.27924]
[1735921781161,0.2792,3584.4,3583.9,0.27923]
[1735921781351,0.2792,3584.3,3583.8,0.27923]
[1735921781555,0.2792,3584.3,3583.9,0.27923]
[1735921781956,3.487,3584.4,3583.9,0.27923]
[1735921782357,3.2078,3584.4,3583.4,3.2078]
[1735921782560,3.2078,3583.7,3582.6,3.2078]
[1735921782857,0.27925,3583.6,3583.1,0.27929]
[1735921783058,3.2078,3583.7,3582.6,3.2078]
[1735921783365,3.48705,3583.7,3583.3,0.27928]
[1735921783661,0.27926,3583.6,3583.1,0.27929]
[1735921783861,0.27927,3583.5,3583.0,0.2793]
[1735921784059,3.2078,3583.3,3582.9,0.27931]
[1735921784363,3.2078,3583.3,3582.3,2.69668]
[1735921784364,2.176,3583.6,3583.3,0.27928]
[1735921784578,2.176,3583.6,3583.1,3.2078]
[1735921784768,2.176,3583.6,3582.3,2.69668]
[1735921784769,2.176,3583.6,3582.7,3.2078]
[1735921784972,2.176,3583.6,3583.4,0.27926]
[1735921785672,2.176,3583.6,3583.2,3.2078]
[1735921785873,2.176,3583.6,3583.2,0.27928]
[1735921786171,2.45526,3583.6,3583.1,0.27929]
[1735921786369,40.8,3583.5,3583.1,0.27929]
[1735921786668,41.07926,3583.5,3583.1,0.27929]
[1735921786873,40.8,3583.5,3582.8,3.2078]
[1735921787076,41.07926,3583.5,3583.1,0.27929]
[1735921787373,41.07926,3583.5,3582.2,1.268]
[1735921787374,3.00626142,3583.2,3582.2,3.2078]
[1735921787570,0.27931,3582.9,3582.4,0.27934]
[1735921787968,0.27932,3582.8,3582.3,0.27935]
[1735921788168,2.1543,3583.1,3582.2,3.2078]
[1735921788477,2.1543,3583.1,3582.5,0.27934]
[1735921788773,0.2793,3583.0,3582.5,0.27933]
[1735921788970,2.1543,3583.1,3582.2,3.2078]
[1735921789271,3.2078,3583.3,3582.6,3.2078]
[1735921789473,1.268,3583.4,3582.6,3.2078]
[1735921789673,3.2078,3583.3,3582.6,3.2078]
[1735921789868,1.268,3583.4,3583.1,0.27929]
[1735921790171,4.4758,3583.4,3582.6,3.2078]
[1735921790371,2.176,3583.6,3583.0,3.2078]
[1735921790574,2.176,3583.6,3583.3,0.27927]
[1735921790876,0.27927,3583.5,3582.6,3.2078]
[1735921791174,2.176,3583.6,3583.2,0.27928]
[1735921791371,2.176,3583.6,3582.6,3.2078]
[1735921791576,0.27926,3583.5,3583.1,0.27929]
[1735921792281,0.27927,3583.4,3582.6,3.2078]
[1735921792473,3.48708,3583.3,3582.9,0.2793]
[1735921792778,2.45526,3583.6,3583.2,0.27928]
[1735921793572,0.27926,3583.5,3583.2,0.27928]
[1735921793880,2.176,3583.6,3582.6,3.2078]
[1735921794375,3.00626142,3583.2,3582.4,0.27935]
[1735921794677,3.00626142,3583.2,3581.8,3.2078]
[1735921794879,0.27932,3582.8,3581.8,3.2078]
[1735921795073,3.2078,3582.4,3581.9,0.27938]
[1735921795374,3.2078,3582.4,3581.4,3.2078]
[1735921795579,0.27939,3581.9,3581.5,0.27942]
[1735921795879,0.27935,3582.3,3581.5,0.27941]
[1735921796074,3.2078,3582.4,3581.4,3.2078]
[1735921796676,0.27938,3582.0,3581.4,3.2078]
[1735921796972,0.27938,3582.0,3581.6,0.2794]
[1735921797178,0.27938,3582.0,3581.4,3.2078]
[1735921797379,40.8,3582.3,3581.4,3.2078]
[1735921797573,0.27937,3582.2,3581.8,0.27939]
[1735921797771,3.2078,3582.4,3582.1,0.27936]
[1735921797976,3.2078,3582.4,3581.8,3.2078]
[1735921797977,6.43123,3582.7,3581.8,3.2078]
[1735921798178,6.1519,3582.7,3581.8,3.2078]
[1735921798477,0.27933,3582.6,3582.3,0.27935]
[1735921798681,6.43123,3582.7,3582.4,0.27935]
[1735921798877,0.27933,3582.6,3582.2,0.27935]
[1735921799284,6.1519,3582.7,3581.8,3.2078]
[1735921799479,4.0583,3582.7,3581.8,3.2078]
[1735921799687,4.33763,3582.7,3582.4,0.27935]
[1735921799880,3.2078,3582.9,3581.8,4.4758]
[1735921800078,2.0581,3583.5,3583.4,0.27927]
[1735921800277,2.0581,3583.5,3582.6,3.2078]
[1735921800475,2.1422,3583.4,3582.5,3.2078]
[1735921800675,2.1422,3583.4,3582.6,0.69834]
[1735921801080,0.27928,3583.3,3583.0,0.2793]
[1735921801281,2.1422,3583.4,3582.5,3.2078]
[1735921801481,2.1422,3583.4,3583.2,0.27928]
[1735921801683,2.42147,3583.4,3583.1,0.27929]
[1735921802083,5.35,3583.4,3582.5,3.2078]
[1735921802285,5.62927,3583.4,3583.0,0.27929]
[1735921802483,5.62927,3583.4,3583.1,0.27929]
[1735921802786,5.35,3583.4,3582.6,0.69834]
[1735921802980,0.27928,3583.3,3582.6,0.27933]
[1735921803180,5.35,3583.4,3582.5,3.2078]
[1735921803588,0.27929,3583.2,3582.9,0.2793]
[1735921803778,5.35,3583.4,3582.5,3.2078]
[1735921803981,3.2078,3583.0,3582.0,3.2078]
[1735921804192,0.27932,3582.8,3582.5,0.27933]
[1735921804486,3.2078,3583.0,3582.1,0.69843]
[1735921804681,3.2078,3583.0,3582.9,0.27931]
[1735921804883,2.088,3583.3,3583.2,0.27928]
[1735921805187,2.1422,3583.4,3582.8,3.90609]
[1735921805492,2.1422,3583.4,3583.3,0.27928]
[1735921805790,3.2078,3583.8,3582.3,1.268]
[1735921805791,3.2078,3583.8,3583.7,0.27925]
[1735921807184,8.61087326,3584.2,3584.1,0.27921]
[1735921807386,5.40307326,3584.2,3584.1,3.48701]
[1735921808085,4.36617606,3584.7,3584.1,8.2078]
[1735921808280,4.36617606,3584.7,3584.6,0.27918]
[1735921809591,42.784,3585.1,3584.7,0.27916]
[1735921809785,1.984,3585.1,3584.5,3.2078]
[1735921810086,2.69506755,3584.8,3584.0,3.2078]
[1735921810289,0.2792,3584.3,3583.8,0.27923]
[1735921810490,3.2078,3584.0,3583.5,3.2078]
[1735921810693,40.8,3584.7,3584.3,0.2792]
[1735921810694,2.0188,3584.6,3584.3,0.2792]
[1735921810881,2.0188,3584.6,3583.9,3.2078]
[1735921811087,2.0188,3584.6,3584.5,0.27918]
[1735921811693,4.36617606,3584.8,3584.7,0.27917]
[1735921812689,2.0313,3585.0,3584.3,3.2078]
[1735921812881,2.0313,3585.0,3584.9,0.27915]
[1735921813086,2.0313,3585.0,3584.3,3.2078]
[1735921813290,2.0313,3585.0,3584.7,0.27916]
[1735921813482,2.69506755,3584.8,3583.4,3.2078]
[1735921813689,0.27923,3584.0,3583.4,3.48706]
[1735921813888,3.2078,3583.8,3582.8,7.46784565]
[1735921814091,0.27926,3583.5,3583.0,0.2793]
[1735921814287,0.27926,3583.6,3582.9,0.27931]
[1735921814487,2.69506755,3583.6,3582.8,7.46784565]
[1735921814693,0.2793,3583.1,3582.8,4.26004565]
[1735921814891,3.2078,3583.3,3582.8,4.26004565]
[1735921815191,3.2078,3583.3,3582.3,3.2078]
[1735921815702,0.27932,3582.9,3582.4,0.27934]
[1735921815997,2.1325,3582.8,3582.7,0.27932]
[1735921816199,3.2078,3583.3,3582.3,3.2078]
[1735921816498,2.0679,3583.7,3581.9,3.00728771]
[1735921816499,2.1325,3583.6,3583.2,0.27928]
[1735921816790,2.1325,3583.6,3583.1,3.2078]
[1735921816991,2.41176,3583.6,3583.1,3.48709]
[1735921817196,2.1325,3583.6,3582.7,3.2078]
[1735921817395,0.27928,3583.3,3582.8,0.27931]
[1735921817595,0.27928,3583.3,3582.7,3.2078]
[1735921817901,0.27926,3583.5,3583.0,0.27929]
[1735921818095,3.48707,3583.4,3583.0,0.27929]
[1735921818295,2.1325,3583.6,3582.9,0.2793]
[1735921818494,3.2078,3583.4,3582.9,0.2793]
[1735921818795,3.2078,3583.4,3582.8,0.27931]
[1735921818996,3.2078,3583.4,3582.7,3.2078]
[1735921818997,0.27929,3583.2,3582.7,3.2078]
[1735921819190,3.2078,3583.4,3582.7,3.2078]
[1735921819393,0.27927,3583.4,3582.8,0.27932]
[1735921819694,2.1325,3583.6,3582.7,3.2078]
[1735921819895,0.27926,3583.5,3583.1,0.27929]
[1735921820093,2.1325,3583.6,3582.7,3.2078]
[1735921820397,2.1325,3583.6,3583.0,0.2793]
[1735921820602,2.1325,3583.6,3582.7,3.2078]
[1735921820801,0.27927,3583.4,3583.0,0.2793]
[1735921821099,0.27928,3583.3,3582.9,0.2793]
[1735921821298,0.27928,3583.3,3583.0,0.2793]
[1735921821495,2.1325,3583.6,3582.7,3.2078]
[1735921821693,0.27928,3583.3,3582.9,0.2793]
[1735921822001,0.27926,3583.5,3583.1,0.27929]
[1735921822302,2.1325,3583.6,3583.5,0.27926]
[1735921822497,4.36617606,3583.8,3583.5,3.2078]
[1735921822702,4.36617606,3583.8,3583.7,0.27925]
[1735921823499,3.86617606,3583.8,3583.7,0.27925]
[1735921823702,3.36617606,3583.8,3583.7,0.27925]
[1735921823890,4.0729,3584.5,3584.3,0.2792]
[1735921824195,4.0729,3584.5,3584.2,0.2792]
[1735921824396,4.0729,3584.5,3584.3,0.2792]
[1735921824698,4.0729,3584.5,3584.3,0.27919]
[1735921824898,4.0729,3584.5,3584.0,3.2078]
[1735921825099,4.0729,3584.5,3584.2,0.2792]
[1735921825299,4.0729,3584.5,3584.0,3.2078]
[1735921825498,4.0729,3584.5,3584.2,0.2792]
[1735921825801,4.0729,3584.5,3584.4,0.27919]
[1735921826495,4.0729,3584.5,3584.0,3.2078]
[1735921826801,4.0729,3584.5,3574.9,0.11659888]
[1735921826802,3.2078,3584.1,3583.5,3.2078]
[1735921827003,4.0729,3584.5,3583.6,3.2078]
[1735921827299,4.0729,3584.5,3584.2,0.27921]
[1735921827300,7.55989,3584.5,3584.2,0.27921]
[1735921827489,7.2807,3584.5,3584.4,0.27919]
[1735921827692,4.0729,3584.5,3584.4,0.27919]
[1735921828094,4.0729,3584.5,3584.4,3.48699]
[1735921828503,4.0729,3584.5,3584.4,0.27919]
[1735921831097,4.0729,3584.5,3583.9,3.2078]
[1735921831306,0.27922,3584.1,3583.5,3.2078]
[1735921831506,0.27923,3583.9,3583.1,3.2078]
[1735921831705,3.2078,3584.0,3583.2,0.27928]
[1735921832006,3.2078,3584.0,3583.9,0.27923]
[1735921832206,44.0078,3584.0,3583.9,0.27923]
[1735921832400,40.8,3584.0,3583.9,0.27923]
[1735921832605,3.487,3584.4,3584.0,0.27922]
[1735921832900,3.2078,3584.4,3584.1,0.27921]
[1735921833095,40.8,3584.3,3584.2,0.27921]
[1735921833299,3.2078,3584.4,3584.3,0.2792]
[1735921833704,3.2078,3584.4,3583.5,3.2078]
[1735921833903,4.0729,3584.5,3583.9,3.2078]
[1735921834107,4.0729,3584.5,3584.4,0.27919]
[1735921837509,2.69259798,3585.1,3584.4,3.2078]
[1735921837711,2.69259798,3585.1,3585.0,0.27914]
[1735921838402,3.27424181,3585.4,3584.5,0.69797]
[1735921838607,3.27424181,3585.4,3585.2,0.27912]
[1735921838797,3.27424181,3585.4,3584.5,0.69797]
[1735921839001,3.2078,3585.3,3585.2,0.27913]
[1735921839203,3.27424181,3585.4,3585.3,0.27912]
[1735921839609,6.74239798,3585.5,3584.9,3.2078]
[1735921839912,6.74239798,3585.5,3584.6,0.69794]
[1735921840107,6.74239798,3585.5,3585.4,0.27911]
[1735921840807,6.74239798,3585.5,3584.9,0.69788]
[1735921841007,6.74239798,3585.5,3585.3,0.27912]
[1735921841208,6.74239798,3585.5,3585.4,0.27911]
[1735921841509,7.02150798,3585.5,3584.7,3.2078]
[1735921841814,6.74239798,3585.5,3585.4,0.27911]
[1735921842007,4.0498,3585.5,3585.4,0.27911]
[1735921842704,4.0498,3585.5,3585.0,0.27914]
[1735921842908,4.0498,3585.5,3585.3,0.27912]
[1735921843203,3.48692,3585.4,3585.1,0.27913]
[1735921843412,3.2078,3585.4,3585.3,0.27912]
[1735921843811,4.72519798,3585.5,3584.7,3.2078]
[1735921844011,4.0905,3585.5,3585.4,0.27911]
[1735921844213,5.41044181,3585.8,3585.1,3.2078]
[1735921844412,5.41044181,3585.8,3585.7,0.27909]
[1735921844611,3.27424181,3585.8,3585.7,0.27909]
[1735921845515,4.1296,3586.1,3585.2,0.69783]
[1735921845807,0.27907,3586.0,3585.1,3.2078]
[1735921846008,0.27908,3585.9,3585.5,0.2791]
[1735921846412,0.27907,3585.9,3585.6,0.27909]
[1735921846617,3.48687,3586.0,3585.6,0.27909]
[1735921846915,3.48687,3586.0,3585.6,0.2791]
[1735921847111,3.2078,3586.0,3585.6,0.27909]
[1735921847312,0.27907,3586.0,3585.7,0.27908]
[1735921847508,4.40866,3586.1,3585.8,0.27908]
[1735921847819,2.69259798,3586.0,3585.6,3.2078]
[1735921848021,0.27907,3585.9,3585.2,3.2078]
[1735921848311,40.8,3585.8,3585.7,0.27909]
[1735921848518,40.8,3585.8,3584.8,5.3068]
[1735921848725,0.27909,3585.7,3584.8,5.3068]
[1735921848914,0.27909,3585.7,3585.4,0.27911]
[1735921849113,3.2078,3585.6,3585.4,0.27911]
[1735921849412,3.2078,3585.6,3584.4,3.2078]
[1735921849413,5.90039798,3585.6,3584.4,3.2078]
[1735921849611,3.2078,3584.8,3584.0,3.2078]
[1735921849821,2.1002,3584.7,3584.6,0.27918]
[1735921850118,3.2078,3585.2,3584.4,3.2078]
[1735921850514,2.1643,3585.1,3584.4,3.2078]
[1735921851213,0.27915,3584.9,3584.4,3.2078]
[1735921851413,0.27915,3584.9,3584.5,0.27918]
[1735921851609,2.1643,3585.1,3584.4,3.2078]
[1735921851921,2.1643,3585.1,3584.5,0.27918]
[1735921852122,2.1643,3585.1,3585.0,0.27914]
[1735921852820,2.1643,3585.1,3584.4,3.90578]
[1735921853013,3.27424181,3585.2,3584.8,3.2078]
[1735921853214,3.27424181,3585.2,3585.1,0.27914]
[1735921854123,5.33544181,3585.7,3585.0,0.69786]
[1735921854323,5.61453181,3585.7,3585.0,0.69786]
[1735921854620,5.33544181,3585.7,3585.0,0.69786]
[1735921854826,5.33544181,3585.7,3585.5,0.2791]
[1735921855122,2.0612,3585.7,3585.6,0.2791]
[1735921855927,2.34029,3585.7,3585.4,0.27911]
[1735921856125,0.2791,3585.6,3585.3,0.27912]
[1735921856325,0.27911,3585.5,3585.2,0.27913]
[1735921856533,5.269,3585.7,3584.8,3.2078]
[1735921856932,5.269,3585.7,3584.9,0.69789]
[1735921857228,3.27424181,3585.9,3585.8,0.27908]
[1735921857925,4.36693623,3586.0,3585.9,0.27907]
[1735921860031,5.46232261,3586.2,3585.8,2.69259798]
[1735921860032,3.2078,3586.7,3586.3,0.27904]
[1735921860239,3.2078,3586.7,3585.6,3.2078]
[1735921860425,0.27903,3586.5,3586.1,0.27906]
[1735921860627,2.69259798,3586.5,3585.9,0.27907]
[1735921860838,0.27905,3586.2,3585.6,3.2078]
[1735921861137,3.2078,3586.3,3586.0,0.27906]
[1735921861344,2.97162798,3586.5,3585.6,3.2078]
[1735921861839,2.97162798,3586.5,3586.2,0.27905]
[1735921862029,2.97162798,3586.5,3585.6,3.2078]
[1735921862030,0.27903,3586.5,3586.1,0.27905]
[1735921862337,0.27903,3586.5,3586.2,0.27905]
[1735921862737,3.27138179,3586.5,3586.3,0.27904]
[1735921862937,3.27138179,3586.5,3586.2,0.27905]
[1735921863231,3.27138179,3586.5,3586.4,0.27904]
[1735921863435,3.27138179,3586.5,3586.3,0.27904]
[1735921863632,5.43408179,3586.6,3586.2,0.27905]
[1735921864030,3.2078,3586.3,3585.6,3.2078]
[1735921864233,5.90039798,3585.7,3584.8,3.2078]
[1735921864429,4.1442,3585.6,3585.3,0.27912]
[1735921864627,40.8,3585.5,3584.8,3.9057]
[1735921864839,4.1442,3585.6,3584.8,3.9057]
[1735921865133,0.27911,3585.5,3584.4,3.2078]
[1735921865340,4.1442,3585.6,3585.3,0.27912]
[1735921865636,4.1442,3585.6,3584.8,3.90571]
[1735921865827,44.9442,3585.6,3585.4,0.27911]
[1735921866027,4.1442,3585.6,3585.5,0.27911]
[1735921867538,3.27138179,3585.9,3585.5,0.27911]
[1735921867833,3.27138179,3585.9,3585.8,0.27908]
[1735921868138,3.27138179,3586.0,3585.9,0.27907]
[1735921869131,5.25948179,3586.2,3586.1,0.27906]
[1735921869731,5.25948179,3586.2,3585.6,3.2078]
[1735921869732,5.25948179,3586.2,3586.0,0.27906]
[1735921870038,8.46728179,3586.2,3585.7,0.27908]
[1735921870234,0.27909,3585.8,3585.5,0.2791]
[1735921870431,3.2078,3585.6,3584.9,3.2078]
[1735921870634,0.27913,3585.2,3584.9,0.27915]
[1735921870836,2.036,3585.1,3584.6,4.31082386]
[1735921871036,2.31514,3585.1,3584.8,0.27916]
[1735921871241,2.31514,3585.1,3584.5,5.60425966]
[1735921871242,2.69259798,3584.9,3584.5,5.60425966]
[1735921871532,0.2792,3584.3,3584.2,4.33640739]
[1735921871733,4.23779798,3584.3,3584.2,1.01950739]
[1735921871939,3.95859798,3584.3,3583.3,3.2078]
[1735921872132,0.27925,3583.7,3583.4,0.27926]
[1735921872337,3.2078,3583.7,3583.2,6.76142613]
[1735921872542,2.97186798,3583.5,3583.2,6.76142613]
[1735921872735,2.97186798,3583.5,3583.3,0.27928]
[1735921872934,2.97186798,3583.5,3583.2,6.48214613]
[1735921872935,2.69259798,3583.5,3583.2,6.48214613]
[1735921873131,0.27927,3583.4,3583.2,6.48214613]
[1735921873544,0.27927,3583.4,3583.0,0.27929]
[1735921873545,3.27138179,3583.3,3583.0,0.27929]
[1735921873834,3.27138179,3583.3,3583.2,0.27928]
[1735921874238,3.27138179,3583.3,3582.6,3.2078]
[1735921874442,3.55066179,3583.3,3582.7,0.27932]
[1735921874639,5.40408179,3583.3,3582.6,3.2078]
[1735921874938,5.40408179,3583.3,3582.4,2.76657]
[1735921874939,0.27931,3582.9,3582.4,2.0682]
[1735921875131,0.27931,3582.9,3581.7,3.2078]
[1735921875132,2.69259798,3582.7,3581.7,3.2078]
[1735921875335,0.27933,3582.6,3582.1,0.27937]
[1735921875541,2.0372,3582.6,3581.7,5.276]
[1735921875735,2.31653,3582.6,3582.1,0.27937]
[1735921875938,2.0372,3582.6,3581.7,5.276]
[1735921876243,2.0372,3582.6,3582.1,0.27936]
[1735921876542,2.69259798,3582.3,3581.5,3.2078]
[1735921876734,2.69259798,3582.3,3581.9,0.27938]
[1735921876929,3.2078,3582.4,3582.0,0.27937]
[1735921877134,3.2078,3582.4,3581.5,3.2078]
[1735921877334,8.79571179,3582.6,3581.6,0.27941]
[1735921877636,8.51638179,3582.6,3582.1,0.27936]
[1735921877837,8.79571179,3582.6,3582.1,0.27936]
[1735921878143,8.51638179,3582.6,3581.4,3.2078]
[1735921878345,3.2078,3582.1,3581.6,0.2794]
[1735921878540,3.2078,3582.1,3581.4,3.2078]
[1735921878742,2.69259798,3581.9,3581.5,0.27941]
[1735921879043,2.69259798,3581.9,3581.6,0.27941]
[1735921879240,2.69259798,3581.9,3581.5,0.27941]
[1735921879544,2.0505,3582.2,3581.4,3.2078]
[1735921879747,2.69259798,3582.3,3581.9,0.27938]
[1735921880342,3.2078,3582.0,3581.3,2.1374]
[1735921880543,3.2078,3582.0,3581.6,0.27941]
[1735921880746,2.69259798,3581.9,3581.3,2.1374]
[1735921880936,6.47918179,3582.4,3581.3,3.2078]
[1735921881134,2.0505,3582.5,3582.2,0.27936]
[1735921881336,2.0505,3582.5,3582.4,0.27935]
[1735921881845,2.0505,3582.5,3582.3,3.2078]
[1735921882145,5.2583,3582.5,3581.5,3.2078]
[1735921882441,5.53764,3582.5,3582.0,0.27937]
[1735921882841,5.2583,3582.5,3581.5,3.2078]
[1735921883433,3.2078,3582.0,3581.2,2.0682]
[1735921883634,3.2078,3582.0,3581.8,0.27939]
[1735921883839,3.2078,3582.0,3581.7,0.2794]
[1735921884038,3.2078,3582.0,3581.2,2.0682]
[1735921884233,3.2078,3582.0,3581.7,0.2794]
[1735921884442,3.2078,3582.0,3581.2,2.0682]
[1735921884643,3.2078,3582.0,3581.8,0.27939]
[1735921884945,3.2078,3582.0,3581.2,2.0682]
[1735921885240,3.2078,3582.0,3581.8,0.27939]
[1735921885448,3.2078,3582.0,3581.2,2.7668]
[1735921885639,3.2078,3582.0,3581.4,0.27942]
[1735921885945,3.2078,3582.0,3581.1,3.2078]
[1735921885946,3.2078,3581.6,3581.1,3.2078]
[1735921886146,2.69259798,3581.8,3581.1,3.2078]
[1735921886338,3.2078,3581.6,3581.4,0.27942]
[1735921886545,2.69259798,3581.8,3581.1,3.2078]
[1735921886844,2.69259798,3581.8,3581.7,0.2794]
[1735921887043,2.69259798,3581.8,3581.1,3.2078]
[1735921887347,5.90039798,3582.2,3581.9,0.27938]
[1735921887646,5.90039798,3582.2,3581.8,0.27939]
[1735921887835,5.90039798,3582.2,3581.1,3.90642]
[1735921888038,5.90039798,3582.2,3581.9,0.27938]
[1735921888244,6.17976798,3582.2,3581.2,0.69861]
[1735921888446,2.69259798,3581.4,3581.1,3.2078]
[1735921888742,5.90039798,3581.4,3580.7,5.2569]
[1735921888945,6.17982798,3581.4,3581.0,0.27945]
[1735921889135,2.0229,3581.7,3581.5,0.27941]
[1735921889335,2.3023,3581.7,3580.7,5.2569]
[1735921889538,2.0973,3581.6,3580.8,0.27947]
[1735921889741,2.0973,3581.6,3581.3,0.27943]
[1735921889947,2.0973,3581.6,3581.2,0.27943]
[1735921890347,2.0973,3581.6,3581.3,0.27943]
[1735921890545,2.0973,3581.6,3580.7,5.9556]
[1735921890846,2.0973,3581.6,3581.5,0.27942]
[1735921891355,3.2078,3582.3,3581.6,0.69853]
[1735921891647,3.2078,3582.3,3582.2,0.27936]
[1735921892146,3.27138179,3582.5,3582.4,0.27935]
[1735921892348,3.27138179,3582.5,3581.7,4.1669]
[1735921892549,3.27138179,3582.5,3581.8,0.27939]
[1735921892550,0.27937,3582.2,3581.8,0.27939]
[1735921892743,6.78449221,3584.5,3584.3,0.2792]
[1735921892948,8.73971618,3584.9,3584.8,0.27916]
[1735921893144,6.87934753,3585.0,3584.8,5.90039798]
[1735921893351,2.1656,3586.6,3586.1,0.27906]
[1735921893751,2.1656,3586.6,3586.2,0.27905]
[1735921894044,2.1656,3586.6,3586.0,5.90039798]
[1735921894244,2.1656,3586.6,3586.0,6.17945798]
[1735921894947,2.1656,3586.6,3586.0,5.90039798]
[1735921895146,2.1656,3586.6,3586.0,6.17945798]
[1735921895349,2.1656,3586.6,3586.0,5.90039798]
[1735921895749,2.44462,3586.6,3586.0,5.90039798]
[1735921895955,40.8,3586.2,3586.0,3.2078]
[1735921896447,2.1656,3586.6,3586.0,3.2078]
[1735921896652,2.0756,3587.5,3586.6,0.27902]
[1735921896951,40.8,3587.7,3587.4,2.69259798]
[1735921897157,40.8,3587.7,3587.6,3.48674]
[1735921898352,40.8,3587.7,3587.0,3.2078]
[1735921898653,3.2078,3587.4,3586.6,3.2078]
[1735921898952,3.2078,3587.4,3586.7,0.27901]
[1735921899148,3.2078,3587.4,3585.8,2.1705]
[1735921899149,3.2078,3586.9,3586.3,0.27904]
[1735921899349,3.2078,3586.9,3586.2,3.2078]
[1735921899550,3.2078,3586.9,3586.5,0.27903]
[1735921900253,3.2078,3586.9,3586.4,0.27903]
[1735921900453,3.2078,3586.9,3586.3,0.27904]
[1735921900851,3.2078,3586.9,3585.8,5.3783]
[1735921901052,3.2078,3586.5,3585.8,3.2078]
[1735921901255,3.2078,3586.5,3584.8,2.1175]
[1735921901256,3.2078,3586.1,3585.4,3.48691]
[1735921901453,3.2078,3586.1,3585.4,3.2078]
[1735921901854,3.2078,3586.1,3585.7,0.27909]
[1735921902045,3.2078,3586.1,3585.4,3.2078]
[1735921902251,3.2078,3586.1,3585.6,0.2791]
[1735921902552,40.8,3585.7,3585.4,3.2078]
[1735921902756,40.8,3585.7,3585.6,0.2791]
[1735921903444,40.8,3585.7,3585.5,0.2791]
[1735921903647,40.8,3585.7,3585.0,3.2078]
[1735921904060,44.0078,3585.7,3585.0,3.2078]
[1735921904458,44.0078,3585.7,3585.6,0.2791]
[1735921905158,44.0078,3585.7,3585.0,3.2078]
[1735921905348,44.0078,3585.7,3585.1,0.27913]
[1735921905756,44.0078,3585.7,3584.6,3.2078]
[1735921905757,3.2078,3585.3,3584.6,3.2078]
[1735921905956,0.27913,3585.2,3584.6,3.2078]
[1735921906148,0.27915,3585.0,3584.6,3.2078]
[1735921906861,3.2078,3584.9,3583.5,6.2076949]
[1735921907252,3.2078,3584.9,3584.2,0.2792]
[1735921907253,3.48695,3584.9,3584.2,0.2792]
[1735921907548,3.2078,3584.9,3584.1,0.27921]
[1735921907752,3.2078,3584.9,3583.5,3.2078]
[1735921908057,0.2792,3584.3,3583.5,3.2078]
[1735921908256,3.2078,3584.0,3582.9,1.9177]
[1735921908456,0.27923,3583.9,3583.2,0.27928]
[1735921908758,3.2078,3584.0,3583.3,0.27927]
[1735921909065,0.27923,3583.9,3582.9,3.2078]
[1735921909259,3.2078,3584.0,3582.9,3.2078]
[1735921909562,3.2078,3584.0,3583.0,0.69826]
[1735921909762,44.0078,3584.4,3584.0,0.27922]
[1735921910165,44.0078,3584.4,3582.5,2.9998949]
[1735921910166,49.0078,3584.4,3582.9,3.2078]
[1735921910461,3.2078,3584.0,3583.7,0.27925]
[1735921911155,3.2078,3584.0,3583.3,3.2078]
[1735921911458,3.2078,3584.0,3583.9,0.27923]
[1735921911655,44.0078,3584.4,3584.0,0.27922]
[1735921911854,44.0078,3584.4,3584.1,0.27921]
[1735921912460,44.0078,3584.4,3583.4,0.69818]
[1735921912766,44.0078,3584.4,3584.0,0.27922]
[1735921912960,44.0078,3584.4,3583.3,3.2078]
[1735921913159,44.0078,3584.4,3584.0,0.27922]
[1735921913359,40.8,3584.4,3583.8,3.2078]
[1735921913562,40.8,3584.4,3584.3,0.2792]
[1735921913762,3.48692,3585.3,3584.7,0.27916]
[1735921914171,40.8,3585.2,3584.2,3.2078]
[1735921914760,40.8,3585.2,3584.3,0.2792]
[1735921914959,40.8,3585.2,3584.9,0.27914]
[1735921915161,40.8,3585.2,3584.2,3.2078]
[1735921915368,40.8,3585.2,3585.0,0.27914]
[1735921915666,40.8,3585.2,3585.1,0.27914]
[1735921916859,40.8,3585.2,3584.5,3.90576]
[1735921917167,40.8,3585.2,3585.1,0.27914]
[1735921918567,3.2078,3585.9,3584.9,3.2078]
[1735921918759,3.48688,3585.9,3585.4,0.27911]
[1735921918956,3.2078,3585.9,3584.9,3.2078]
[1735921919155,40.8,3585.8,3585.4,0.27911]
[1735921919476,40.8,3585.8,3584.9,3.2078]
[1735921919667,40.8,3585.8,3585.4,0.27911]
[1735921919871,41.07908,3585.8,3585.4,0.27911]
[1735921920262,0.27909,3585.7,3585.3,0.27911]
[1735921920474,40.8,3585.8,3584.8,0.27916]
[1735921920475,41.07909,3585.8,3584.8,0.27916]
[1735921920665,40.8,3585.8,3584.8,0.69791]
[1735921920969,41.07908,3585.8,3585.5,0.2791]
[1735921921170,41.07909,3585.8,3585.4,0.27911]
[1735921921366,0.27909,3585.7,3585.3,0.27912]
[1735921921568,3.2078,3585.5,3584.9,0.27915]
[1735921921769,0.27913,3585.2,3584.8,0.27916]
[1735921922071,0.27912,3585.4,3584.9,0.27915]
[1735921922270,3.2078,3585.6,3584.6,0.69795]
[1735921922664,3.2078,3586.2,3584.9,3.2078]
[1735921922866,3.2078,3586.2,3585.5,0.2791]
[1735921923066,3.2078,3586.2,3584.9,3.2078]
[1735921923067,40.8,3586.1,3584.9,3.2078]
[1735921923265,40.8,3586.1,3585.0,0.69787]
[1735921923470,40.8,3586.1,3585.7,0.27909]
[1735921923673,40.8,3586.1,3585.0,0.69787]